fUST/lending_fUST_20251010
["ID","MTS","AMOUNT","RATE_DAILY","PERIOD"]
[390436691,1760044254687,-151.0,0.0001726,2]
[390436693,1760044254695,-500.0,0.0001726,2]
[390436695,1760044254704,-500.0,0.0001726,2]
[390436697,1760044254713,-1698.35,0.0001726,2]
[390436698,1760044254722,-1501.33,0.0001726,2]
[390436699,1760044254731,-500.0,0.0001726,2]
[390436700,1760044254741,-500.0,0.0001726,2]
[390436701,1760044254749,-500.0,0.0001726,2]
[390436702,1760044254758,-361.94,0.0001726,2]
[390436703,1760044254767,-500.0,0.0001726,2]
[390436704,1760044254776,-500.0,0.0001726,2]
[390436705,1760044254785,-500.0,0.0001726,2]
[390436706,1760044254798,-500.0,0.0001726,2]
[390436707,1760044254807,-500.0,0.0001726,2]
[390436708,1760044254816,-830.44,0.0001726,2]
[390436709,1760044254826,-500.0,0.0001726,2]
[390436710,1760044254835,-604.0,0.0001726,2]
[390436711,1760044254844,-500.0,0.0001726,2]
[390436712,1760044254853,-743.79,0.0001726,2]
[390436713,1760044254862,-574.12,0.0001726,2]
[390436715,1760044254874,-500.0,0.0001726,2]
[390436717,1760044254883,-500.0,0.0001726,2]
[390436719,1760044254892,-519.75,0.0001726,2]
[390436721,1760044254901,-500.0,0.0001726,2]
[390436723,1760044254910,-500.0,0.0001726,2]
[390436725,1760044254919,-500.0,0.0001726,2]
[390436727,1760044254928,-500.0,0.0001726,2]
[390436729,1760044254937,-1710.58808,0.0001726,2]
[390436731,1760044254947,-1678.673982,0.0001726,2]
[390436733,1760044254956,-500.0,0.0001726,2]
[390436735,1760044254965,-500.0,0.0001726,2]
[390436737,1760044254975,-500.0,0.0001726,2]
[390436756,1760044255129,-500.0,0.0001726,2]
[390436759,1760044255155,-642.36,0.0001726,2]
[390436760,1760044255164,-500.0,0.0001726,2]
[390436762,1760044255173,-843.84,0.0001726,2]
[390436764,1760044255182,-500.0,0.0001726,2]
[390436766,1760044255191,-500.0,0.0001726,2]
[390436768,1760044255201,-500.0,0.0001726,2]
[390436770,1760044255210,-500.0,0.0001726,2]
[390436772,1760044255219,-627.48,0.0001726,2]
[390436774,1760044255228,-500.0,0.0001726,2]
[390436776,1760044255237,-239.2,0.0001726,2]
[390436778,1760044255246,-200.11,0.0001726,2]
[390436781,1760044255255,-500.0,0.0001726,2]
[390436782,1760044255265,-151.21,0.0001726,2]
[390436784,1760044255274,-500.0,0.0001726,2]
[390436786,1760044255286,-500.0,0.0001726,2]
[390436789,1760044255295,-2018.1,0.0001726,2]
[390436791,1760044255304,-500.0,0.0001726,2]
[390436793,1760044255313,-2869.61,0.0001726,2]
[390436795,1760044255322,-500.0,0.0001726,2]
[390436797,1760044255332,-744.02,0.0001726,2]
[390436798,1760044255343,-199.98,0.0001726,2]
[390436800,1760044255352,-2296.9,0.0001726,2]
[390436803,1760044255361,-500.0,0.0001726,2]
[390436805,1760044255370,-500.0,0.0001726,2]
[390436807,1760044255379,-3749.2,0.0001726,2]
[390436809,1760044255387,-2368.84,0.0001726,2]
[390436811,1760044255396,-490.35,0.0001726,2]
[390436813,1760044255406,-1316.49,0.0001726,2]
[390436815,1760044255415,-886.11,0.0001726,2]
[390436817,1760044255426,-167.9,0.0001726,2]
[390436819,1760044255435,-500.0,0.0001726,2]
[390436821,1760044255444,-3497.11,0.0001726,2]
[390436823,1760044255453,-521.18,0.0001726,2]
[390436825,1760044255462,-1035.58,0.0001726,2]
[390436827,1760044255471,-500.0,0.0001726,2]
[390436829,1760044255481,-6140.51,0.0001726,2]
[390436831,1760044255490,-7259.74,0.0001726,2]
[390436833,1760044255499,-920.67,0.0001726,2]
[390436835,1760044255508,-500.0,0.0001726,2]
[390436837,1760044255518,-781.63,0.0001726,2]
[390436839,1760044255527,-2050.23,0.0001726,2]
[390436841,1760044255536,-500.0,0.0001726,2]
[390436843,1760044255545,-352.69,0.0001726,2]
[390436845,1760044255555,-600.09,0.0001726,2]
[390436847,1760044255564,-695.14,0.0001726,2]
[390436849,1760044255573,-500.0,0.0001726,2]
[390436851,1760044255582,-500.0,0.0001726,2]
[390436853,1760044255591,-546.58,0.0001726,2]
[390436855,1760044255600,-500.0,0.0001726,2]
[390436857,1760044255609,-724.32,0.0001726,2]
[390436859,1760044255618,-655.24,0.0001726,2]
[390436861,1760044255627,-601.05,0.0001726,2]
[390436863,1760044255637,-654.66,0.0001726,2]
[390436865,1760044255645,-237.18,0.0001726,2]
[390436867,1760044255655,-365.30899625,0.0001726,2]
[390436869,1760044255664,-786.01,0.0001726,2]
[390436871,1760044255673,-500.0,0.0001726,2]
[390436873,1760044255683,-500.0,0.0001726,2]
[390436875,1760044255691,-647.96,0.0001726,2]
[390436877,1760044255701,-500.0,0.0001726,2]
[390436879,1760044255709,-500.0,0.0001726,2]
[390436881,1760044255719,-500.0,0.0001726,2]
[390436883,1760044255727,-1195.94,0.0001726,2]
[390436885,1760044255737,-500.0,0.0001726,2]
[390436887,1760044255746,-500.0,0.0001726,2]
[390436889,1760044255755,-6179.93,0.0001726,2]
[390436891,1760044255764,-640.61,0.0001726,2]
[390436893,1760044255774,-1260.68,0.0001726,2]
[390436895,1760044255783,-500.0,0.0001726,2]
[390436897,1760044255795,-2780.92,0.0001726,2]
[390436899,1760044255806,-1035.29,0.0001726,2]
[390436901,1760044255815,-500.0,0.0001726,2]
[390436903,1760044255825,-500.0,0.0001726,2]
[390436905,1760044255834,-5115.46,0.0001726,2]
[390436907,1760044255845,-183.26,0.0001726,2]
[390436909,1760044255854,-752.23,0.0001726,2]
[390436911,1760044255863,-500.0,0.0001726,2]
[390436913,1760044255874,-500.0,0.0001726,2]
[390436915,1760044255883,-500.19,0.0001726,2]
[390436917,1760044255892,-575.41,0.0001726,2]
[390436919,1760044255902,-500.0,0.0001726,2]
[390436921,1760044255911,-1682.7,0.0001726,2]
[390436922,1760044255920,-500.0,0.0001726,2]
[390436925,1760044255930,-500.0,0.0001726,2]
[390436926,1760044255939,-1034.5,0.0001726,2]
[390436928,1760044255948,-500.0,0.0001726,2]
[390436931,1760044255957,-500.0,0.0001726,2]
[390436933,1760044255967,-661.16,0.0001726,2]
[390436934,1760044255976,-500.0,0.0001726,2]
[390436937,1760044255985,-500.0,0.0001726,2]
[390436938,1760044255994,-808.32,0.0001726,2]
[390436941,1760044256004,-500.0,0.0001726,2]
[390436943,1760044256013,-500.0,0.0001726,2]
[390436945,1760044256022,-865.3,0.0001726,2]
[390436947,1760044256030,-1101.03,0.0001726,2]
[390436949,1760044256040,-500.0,0.0001726,2]
[390436951,1760044256048,-2269.06,0.0001726,2]
[390436953,1760044256057,-500.0,0.0001726,2]
[390436955,1760044256067,-500.0,0.0001726,2]
[390436957,1760044256075,-896.42,0.0001726,2]
[390436958,1760044256085,-830.15,0.0001726,2]
[390436961,1760044256094,-959.1,0.0001726,2]
[390436963,1760044256103,-500.0,0.0001726,2]
[390436964,1760044256112,-5942.09,0.0001726,2]
[390436967,1760044256125,-500.0,0.0001726,2]
[390436969,1760044256135,-824.32,0.0001726,2]
[390436971,1760044256144,-1055.29,0.0001726,2]
[390436973,1760044256153,-500.0,0.0001726,2]
[390436975,1760044256162,-592.4,0.0001726,2]
[390436976,1760044256171,-500.0,0.0001726,2]
[390436979,1760044256180,-500.0,0.0001726,2]
[390436981,1760044256190,-500.0,0.0001726,2]
[390436982,1760044256199,-500.0,0.0001726,2]
[390436984,1760044256208,-930.7,0.0001726,2]
[390436986,1760044256217,-2734.48,0.0001726,2]
[390436988,1760044256225,-500.0,0.0001726,2]
[390436990,1760044256235,-2416.43,0.0001726,2]
[390436992,1760044256244,-500.0,0.0001726,2]
[390436995,1760044256254,-587.47,0.0001726,2]
[390436997,1760044256265,-500.0,0.0001726,2]
[390436999,1760044256273,-675.85,0.0001726,2]
[390437001,1760044256282,-647.86,0.0001726,2]
[390437003,1760044256291,-500.0,0.0001726,2]
[390437005,1760044256300,-800.06,0.0001726,2]
[390437007,1760044256309,-500.0,0.0001726,2]
[390437009,1760044256319,-500.0,0.0001726,2]
[390437010,1760044256328,-500.0,0.0001726,2]
[390437012,1760044256338,-717.68,0.0001726,2]
[390437014,1760044256348,-500.0,0.0001726,2]
[390437017,1760044256357,-1000.0,0.00017321,2]
[390437019,1760044256366,-505.21896128,0.00017321,2]
[390437020,1760044256375,-1000.0,0.00017321,2]
[390437022,1760044256384,-1000.90537525,0.00017321,2]
[390437024,1760044256396,-1000.0,0.00017321,2]
[390437027,1760044256415,-1000.0,0.00017321,2]
[390437029,1760044256424,-1000.0,0.00017321,2]
[390437031,1760044256434,-1000.0,0.00017321,2]
[390437032,1760044256443,-1000.0,0.00017321,2]
[390437035,1760044256453,-1000.0,0.00017321,2]
[390437037,1760044256463,-1000.0,0.00017321,2]
[390437039,1760044256472,-453.40714898,0.00017321,2]
[390437041,1760044256481,-1000.0,0.00017321,2]
[390437043,1760044256490,-1000.0,0.00017321,2]
[390437045,1760044256499,-1000.0,0.00017321,2]
[390437047,1760044256508,-1000.0,0.00017321,2]
[390437049,1760044256517,-1000.0,0.00017321,2]
[390437051,1760044256527,-1000.0,0.00017321,2]
[390437053,1760044256536,-1000.0,0.00017321,2]
[390437055,1760044256545,-1006.51789788,0.00017321,2]
[390437057,1760044256554,-1000.0,0.00017321,2]
[390437059,1760044256563,-1000.0,0.00017321,2]
[390437061,1760044256572,-500.0,0.00017321,2]
[390437063,1760044256581,-1000.0,0.00017321,2]
[390437065,1760044256590,-1000.0,0.00017321,2]
[390437067,1760044256600,-1000.0,0.00017321,2]
[390437069,1760044256608,-3922.0,0.00017341,2]
[390437071,1760044256617,-731.44350904,0.00017385,2]
[390437073,1760044256627,-1410.61891811,0.00017389,2]
[390437075,1760044256636,-600.0,0.00017392,2]
[390437077,1760044256652,-168.01695143,0.00017416,2]
[390437079,1760044256664,-293.09701737,0.0001743,2]
[390437081,1760044256674,-198.0,0.0001743,2]
[390437083,1760044256683,-7637.03174367,0.00017434,2]
[390437085,1760044256691,-3922.0,0.00017479,2]
[390437087,1760044256700,-720.0,0.00017489,2]
[390437089,1760044256710,-500.0,0.00017506,2]
[390437091,1760044256720,-500.0,0.00017519,2]
[390437093,1760044256729,-635.00645768,0.00017519,2]
[390437095,1760044256737,-500.0,0.00017519,2]
[390437097,1760044256746,-500.0,0.00017519,2]
[390437099,1760044256756,-1669.0,0.00017534,2]
[390437101,1760044256765,-551.64,0.00017534,2]
[390437103,1760044256774,-528.65,0.00017534,2]
[390437105,1760044256783,-209.04,0.00017534,2]
[390437107,1760044256793,-298.4,0.00017534,2]
[390437109,1760044256805,-500.0,0.00017534,2]
[390437111,1760044256814,-500.0,0.00017534,2]
[390437113,1760044256823,-500.0,0.00017534,2]
[390437115,1760044256832,-500.0,0.00017534,2]
[390437116,1760044256842,-515.44,0.00017534,2]
[390437118,1760044256851,-500.0,0.00017534,2]
[390437121,1760044256861,-500.0,0.00017534,2]
[390437123,1760044256871,-500.0,0.00017534,2]
[390437124,1760044256880,-295.28,0.00017534,2]
[390437127,1760044256891,-500.0,0.00017534,2]
[390437129,1760044256900,-500.0,0.00017534,2]
[390437131,1760044256908,-197.8,0.00017534,2]
[390437133,1760044256917,-1698.35,0.00017534,2]
[390437135,1760044256927,-1501.33,0.00017534,2]
[390437137,1760044256936,-302.26,0.00017534,2]
[390437139,1760044256944,-500.0,0.00017534,2]
[390437141,1760044256953,-500.0,0.00017534,2]
[390437143,1760044256963,-500.0,0.00017534,2]
[390437144,1760044256973,-500.0,0.00017534,2]
[390437146,1760044256982,-500.0,0.00017534,2]
[390437149,1760044256991,-830.44,0.00017534,2]
[390437150,1760044257001,-500.0,0.00017534,2]
[390437152,1760044257010,-500.0,0.00017534,2]
[390437154,1760044257020,-743.79,0.00017534,2]
[390437156,1760044257030,-325.74,0.00017534,2]
[390437159,1760044257040,-612.24,0.00017534,2]
[390437161,1760044257050,-293.82,0.00017534,2]
[390437162,1760044257060,-500.0,0.00017534,2]
[390437165,1760044257070,-500.0,0.00017534,2]
[390437166,1760044257081,-159.74,0.00017534,2]
[390437168,1760044257090,-235.02454287,0.00017534,2]
[390437170,1760044257100,-500.0,0.00017534,2]
[390437172,1760044257109,-500.0,0.00017534,2]
[390437174,1760044257118,-500.0,0.00017534,2]
[390437176,1760044257127,-500.0,0.00017534,2]
[390437178,1760044257137,-843.84,0.00017534,2]
[390437180,1760044257146,-500.0,0.00017534,2]
[390437182,1760044257155,-500.0,0.00017534,2]
[390437184,1760044257164,-500.0,0.00017534,2]
[390437186,1760044257173,-500.0,0.00017534,2]
[390437188,1760044257182,-267.08,0.00017534,2]
[390437190,1760044257191,-500.0,0.00017534,2]
[390437192,1760044257199,-500.0,0.00017534,2]
[390437194,1760044257208,-500.0,0.00017534,2]
[390437196,1760044257217,-2018.1,0.00017534,2]
[390437198,1760044257226,-500.0,0.00017534,2]
[390437200,1760044257234,-2869.61,0.00017534,2]
[390437202,1760044257243,-500.0,0.00017534,2]
[390437204,1760044257252,-744.02,0.00017534,2]
[390437206,1760044257261,-2296.9,0.00017534,2]
[390437208,1760044257270,-500.0,0.00017534,2]
[390437210,1760044257279,-3749.2,0.00017534,2]
[390437212,1760044257288,-2368.84,0.00017534,2]
[390437214,1760044257297,-1316.49,0.00017534,2]
[390437216,1760044257305,-886.11,0.00017534,2]
[390437218,1760044257314,-3497.11,0.00017534,2]
[390437219,1760044257323,-1035.58,0.00017534,2]
[390437221,1760044257332,-224.22,0.00017534,2]
[390437223,1760044257342,-6140.51,0.00017534,2]
[390437225,1760044257351,-3479.58353071,0.00017534,2]
[390437254,1760044257625,-3780.15646929,0.00017534,2]
[390437256,1760044257634,-920.67,0.00017534,2]
[390437258,1760044257644,-500.0,0.00017534,2]
[390437260,1760044257653,-781.63,0.00017534,2]
[390437262,1760044257662,-2050.23,0.00017534,2]
[390437264,1760044257672,-353.66,0.00017534,2]
[390437266,1760044257680,-600.09,0.00017534,2]
[390437268,1760044257689,-695.14,0.00017534,2]
[390437270,1760044257698,-500.0,0.00017534,2]
[390437272,1760044257707,-500.0,0.00017534,2]
[390437274,1760044257716,-500.0,0.00017534,2]
[390437276,1760044257725,-724.32,0.00017534,2]
[390437278,1760044257734,-654.66,0.00017534,2]
[390437280,1760044257743,-786.01,0.00017534,2]
[390437281,1760044257752,-500.0,0.00017534,2]
[390437284,1760044257763,-655.24,0.00017534,2]
[390437285,1760044257772,-500.0,0.00017534,2]
[390437287,1760044257780,-647.96,0.00017534,2]
[390437289,1760044257789,-217.36,0.00017534,2]
[390437291,1760044257802,-500.0,0.00017534,2]
[390437293,1760044257810,-1195.94,0.00017534,2]
[390437295,1760044257820,-500.0,0.00017534,2]
[390437297,1760044257829,-6179.93,0.00017534,2]
[390437299,1760044257839,-640.61,0.00017534,2]
[390437301,1760044257848,-1260.68,0.00017534,2]
[390437303,1760044257857,-2780.92,0.00017534,2]
[390437321,1760044258030,-1035.29,0.00017534,2]
[390437323,1760044258040,-500.0,0.00017534,2]
[390437325,1760044258050,-500.0,0.00017534,2]
[390437327,1760044258059,-5115.46,0.00017534,2]
[390437329,1760044258069,-752.23,0.00017534,2]
[390437331,1760044258077,-500.0,0.00017534,2]
[390437333,1760044258086,-500.0,0.00017534,2]
[390437335,1760044258096,-500.19,0.00017534,2]
[390437336,1760044258105,-575.41,0.00017534,2]
[390437338,1760044258114,-500.0,0.00017534,2]
[390437340,1760044258123,-1682.7,0.00017534,2]
[390437342,1760044258131,-500.0,0.00017534,2]
[390437344,1760044258140,-500.0,0.00017534,2]
[390437346,1760044258150,-152.16331448,0.00017534,2]
[390437349,1760044258169,-882.33668552,0.00017534,2]
[390437351,1760044258181,-468.79217084,0.00017534,2]
[390437354,1760044258199,-31.20782916,0.00017534,2]
[390437356,1760044258208,-661.16,0.00017534,2]
[390437357,1760044258217,-155.66,0.00017534,2]
[390437359,1760044258226,-472.56,0.00017534,2]
[390437361,1760044258235,-808.32,0.00017534,2]
[390437363,1760044258244,-500.0,0.00017534,2]
[390437365,1760044258253,-500.0,0.00017534,2]
[390437367,1760044258262,-865.3,0.00017534,2]
[390437369,1760044258271,-1101.03,0.00017534,2]
[390437371,1760044258280,-2125.84156558,0.00017534,2]
[390437405,1760044258601,-361.531263,0.00016438,2]
[390437407,1760044258611,-500.0,0.00016438,2]
[390437409,1760044258620,-361.531263,0.00016438,2]
[390437411,1760044258629,-361.531263,0.00016438,2]
[390437413,1760044258638,-361.531263,0.00016438,2]
[390437415,1760044258647,-361.531263,0.00016438,2]
[390437417,1760044258657,-500.0,0.00016712,2]
[390437419,1760044258666,-361.531263,0.00016712,2]
[390437421,1760044258675,-361.531263,0.00016712,2]
[390437423,1760044258684,-143.21843442,0.00017534,2]
[390437425,1760044258694,-500.0,0.00017534,2]
[390437427,1760044258703,-896.42,0.00017534,2]
[390437429,1760044258711,-830.15,0.00017534,2]
[390437431,1760044258720,-959.1,0.00017534,2]
[390437433,1760044258729,-549.6,0.00017534,2]
[390437435,1760044258738,-5942.09,0.00017534,2]
[390437437,1760044258747,-824.32,0.00017534,2]
[390437439,1760044258756,-1055.29,0.00017534,2]
[390437441,1760044258765,-361.76,0.00017534,2]
[390437443,1760044258775,-592.4,0.00017534,2]
[390437445,1760044258783,-500.0,0.00017534,2]
[390437447,1760044258792,-600.34,0.00017534,2]
[390437449,1760044258805,-500.0,0.00017534,2]
[390437451,1760044258814,-254.52,0.00017534,2]
[390437453,1760044258822,-930.7,0.00017534,2]
[390437455,1760044258831,-2734.48,0.00017534,2]
[390437457,1760044258841,-500.0,0.00017534,2]
[390437458,1760044258850,-2416.43,0.00017534,2]
[390437460,1760044258858,-500.0,0.00017534,2]
[390437462,1760044258868,-587.47,0.00017534,2]
[390437464,1760044258879,-500.0,0.00017534,2]
[390437466,1760044258889,-675.85,0.00017534,2]
[390437468,1760044258898,-647.86,0.00017534,2]
[390437470,1760044258907,-800.06,0.00017534,2]
[390437472,1760044258916,-461.76632488,0.00017534,2]
[390437474,1760044258925,-357.679777,0.00017534,2]
[390437476,1760044258933,-500.0,0.00017534,2]
[390437478,1760044258942,-717.68,0.00017534,2]
[390437480,1760044258950,-500.0,0.00017534,2]
[390437482,1760044258959,-402.15066402,0.00017536,2]
[390437483,1760044258967,-160.0,0.00017536,2]
[390437485,1760044258977,-234.29301719,0.00017536,2]
[390437487,1760044258986,-160.0,0.00017536,2]
[390437489,1760044258995,-417.15472785,0.00017536,2]
[390437491,1760044259004,-160.0,0.00017536,2]
[390437493,1760044259013,-167.5231728,0.00017541,2]
[390437495,1760044259022,-3100.9429251,0.00017541,2]
[390437497,1760044259030,-500.0,0.00017568,2]
[390437499,1760044259039,-500.0,0.00017568,2]
[390437501,1760044259047,-600.0,0.00017568,2]
[390437502,1760044259056,-1500.0,0.00017568,2]
[390437503,1760044259065,-1500.0,0.00017568,2]
[390437504,1760044259074,-516.53840168,0.00017571,2]
[390437505,1760044259082,-1000.0,0.00017575,2]
[390437506,1760044259091,-1000.0,0.00017575,2]
[390437507,1760044259100,-500.0,0.00017575,2]
[390437508,1760044259109,-502.60079924,0.00017575,2]
[390437509,1760044259118,-1135.0,0.00017599,2]
[390437510,1760044259128,-1936.38402321,0.000176,2]
[390437511,1760044259136,-151.0,0.000176,2]
[390437512,1760044259145,-500.0,0.00017609,2]
[390437513,1760044259154,-1000.0,0.00017609,2]
[390437514,1760044259164,-500.44455472,0.00017609,2]
[390437515,1760044259173,-1000.0,0.00017609,2]
[390437516,1760044259182,-1000.0,0.00017609,2]
[390437517,1760044259191,-1001.03087857,0.00017609,2]
[390437518,1760044259200,-1135.0,0.00017664,2]
[390437519,1760044259209,-1135.0,0.00017693,2]
[390437520,1760044259218,-1936.38402321,0.000177,2]
[390437521,1760044259228,-600.0,0.00017744,2]
[390437522,1760044259237,-500.0,0.0001778,2]
[390437523,1760044259246,-260.0,0.00017784,2]
[390437524,1760044259255,-3922.0,0.00017789,2]
[390437525,1760044259264,-151.0,0.000178,2]
[390437527,1760044259273,-1669.0,0.00017808,2]
[390437529,1760044259282,-2290.58,0.00017808,2]
[390437531,1760044259291,-500.0,0.00017808,2]
[390437532,1760044259299,-551.64,0.00017808,2]
[390437534,1760044259309,-528.65,0.00017808,2]
[390437536,1760044259318,-500.0,0.00017808,2]
[390437538,1760044259327,-500.0,0.00017808,2]
[390437540,1760044259336,-500.0,0.00017808,2]
[390437542,1760044259345,-500.0,0.00017808,2]
[390437544,1760044259354,-515.44,0.00017808,2]
[390437546,1760044259364,-465.39432308,0.00017808,2]
[390437548,1760044259374,-316.601176,0.00017808,2]
[390437550,1760044259384,-500.0,0.00017808,2]
[390437552,1760044259393,-172.74,0.00017808,2]
[390437554,1760044259403,-500.0,0.00017808,2]
[390437556,1760044259412,-1698.35,0.00017808,2]
[390437558,1760044259421,-486.4791642,0.00017808,7]
[390437560,1760044259429,-1501.33,0.00017808,2]
[390437562,1760044259438,-500.0,0.00017808,2]
[390437564,1760044259447,-500.0,0.00017808,2]
[390437566,1760044259456,-830.44,0.00017808,2]
[390437568,1760044259464,-500.0,0.00017808,2]
[390437570,1760044259473,-743.79,0.00017808,2]
[390437572,1760044259482,-500.0,0.00017808,2]
[390437574,1760044259491,-500.0,0.00017808,2]
[390437576,1760044259500,-500.0,0.00017808,2]
[390437578,1760044259509,-500.0,0.00017808,2]
[390437580,1760044259518,-500.0,0.00017808,2]
[390437582,1760044259527,-500.0,0.00017808,2]
[390437584,1760044259536,-843.84,0.00017808,2]
[390437586,1760044259545,-500.0,0.00017808,2]
[390437588,1760044259554,-367.4,0.00017808,2]
[390437590,1760044259563,-500.0,0.00017808,2]
[390437592,1760044259572,-500.0,0.00017808,2]
[390437594,1760044259581,-500.0,0.00017808,2]
[390437595,1760044259590,-1000.0,0.00017808,2]
[390437597,1760044259599,-500.0,0.00017808,2]
[390437599,1760044259609,-500.0,0.00017808,2]
[390437601,1760044259619,-2018.1,0.00017808,2]
[390437603,1760044259628,-354.64,0.00017808,2]
[390437605,1760044259637,-2869.61,0.00017808,2]
[390437607,1760044259647,-500.0,0.00017808,2]
[390437609,1760044259656,-744.02,0.00017808,2]
[390437611,1760044259665,-2296.9,0.00017808,2]
[390437613,1760044259674,-500.0,0.00017808,2]
[390437615,1760044259684,-3749.2,0.00017808,2]
[390437617,1760044259693,-2368.84,0.00017808,2]
[390437619,1760044259702,-1071.8321487,0.00017808,2]
[390437622,1760044259715,-244.6578513,0.00017808,2]
[390437624,1760044259724,-191.13675075,0.00017808,2]
[390437673,1760044260187,-361.531263,0.00016438,2]
[390437675,1760044260196,-500.0,0.00016438,2]
[390437677,1760044260205,-361.531263,0.00016438,2]
[390437679,1760044260214,-361.531263,0.00016438,2]
[390437681,1760044260223,-500.0,0.00016438,2]
[390437683,1760044260231,-500.0,0.00016438,2]
[390437685,1760044260240,-500.0,0.00016438,2]
[390437687,1760044260249,-500.0,0.00016438,2]
[390437689,1760044260258,-151.0,0.00016438,2]
[390437691,1760044260267,-151.0,0.00016438,2]
[390437693,1760044260276,-500.0,0.00016438,2]
[390437695,1760044260286,-151.0,0.00016438,2]
[390437697,1760044260295,-361.531263,0.00016712,2]
[390437699,1760044260304,-361.531263,0.00016712,2]
[390437701,1760044260313,-361.531263,0.00016712,2]
[390437702,1760044260322,-361.531266,0.00016712,2]
[390437704,1760044260331,-500.0,0.00016712,2]
[390437706,1760044260340,-694.97324925,0.00017808,2]
[390437709,1760044260351,-3497.11,0.00017808,2]
[390437710,1760044260360,-1035.58,0.00017808,2]
[390437712,1760044260369,-230.61790715,0.00017808,2]
[390437909,1760044293814,309.49,0.00028767,120]
[390437911,1760044465582,488.57376032,0.00028767,120]
[390437918,1760045154161,10692.68,0.00024,30]
[390437930,1760045281919,4873.53700788,0.000237,30]
[390437931,1760045282156,419.85572508,0.000248,120]
[390437932,1760045295232,2254.79684604,0.0002,30]
[390437935,1760045310703,4347.77586822,0.000212,30]
[390437939,1760045319887,9592.43591746,0.00024,30]
[390437943,1760045357665,1000.0,0.00027397,120]
[390437988,1760045432177,-223.538189,0.00015701,2]
[390437991,1760045432187,-472.63717718,0.00015701,2]
[390437993,1760045432196,-543.53275376,0.00016301,2]
[390437994,1760045432205,-339.07918936,0.00016338,2]
[390437996,1760045432214,-300.0,0.00016435,2]
[390437998,1760045432228,-300.0,0.00016435,2]
[390438000,1760045432237,-300.0,0.00016435,2]
[390438002,1760045432247,-300.0,0.00016435,2]
[390438004,1760045432257,-300.0,0.00016435,2]
[390438007,1760045432275,-1200.0,0.00016436,2]
[390438008,1760045432285,-17889.45221126,0.00016437,2]
[390438010,1760045432296,-443.52235916,0.00016437,2]
[390438012,1760045432305,-500.0,0.00016437,2]
[390438014,1760045432315,-500.0,0.00016437,2]
[390438016,1760045432324,-500.0,0.00016437,2]
[390438018,1760045432333,-212.62065654,0.00016437,2]
[390438020,1760045432344,-500.0,0.00016437,2]
[390438023,1760045432353,-421.99591831,0.00016437,2]
[390438026,1760045432363,-500.0,0.00016437,2]
[390438029,1760045432373,-500.0,0.00016437,2]
[390438030,1760045432382,-500.0,0.00016437,2]
[390438034,1760045432392,-500.0,0.00016437,2]
[390438036,1760045432401,-500.0,0.00016437,2]
[390438040,1760045432410,-500.0,0.00016437,2]
[390438044,1760045432419,-500.0,0.00016437,2]
[390438048,1760045432429,-248.13373012,0.00016437,2]